fUST/lending_fUST_20240602
["ID","MTS","AMOUNT","RATE_DAILY","PERIOD"]
[328392644,1717329040715,-151.0,0.00019452,2]
[328392647,1717329040725,-186.081442,0.00019452,2]
[328392650,1717329040734,-847.99,0.00019452,2]
[328392651,1717329040744,-723.94,0.00019452,2]
[328392652,1717329040754,-500.0,0.00019452,2]
[328392653,1717329040763,-500.0,0.00019452,2]
[328392654,1717329040772,-500.0,0.00019452,2]
[328392656,1717329040781,-500.0,0.00019452,2]
[328392657,1717329040790,-283.86669786,0.00019725,2]
[328392658,1717329040800,-545.09,0.00019726,2]
[328392659,1717329040811,-151.0,0.00019726,2]
[328392660,1717329040820,-500.0,0.00019726,2]
[328392661,1717329040830,-152.762407,0.00019726,2]
[328392662,1717329040839,-1138.15,0.00019726,2]
[328392663,1717329040849,-1236.92,0.00019726,2]
[328392664,1717329040858,-500.0,0.00019726,2]
[328392665,1717329040868,-720.06,0.00019726,2]
[328392666,1717329040878,-1045.07,0.00019726,2]
[328392667,1717329040887,-920.78,0.00019726,2]
[328392668,1717329040897,-500.0,0.00019726,2]
[328392669,1717329040907,-500.0,0.00019726,2]
[328392670,1717329040918,-500.0,0.00019726,2]
[328392671,1717329040928,-500.0,0.00019726,2]
[328392672,1717329040938,-500.0,0.00019726,2]
[328392673,1717329040948,-3041.61,0.00019726,2]
[328392674,1717329040958,-151.0,0.00019726,2]
[328392675,1717329040970,-151.0,0.00019726,2]
[328392676,1717329040979,-500.0,0.00019726,2]
[328392677,1717329040988,-151.0,0.00019726,2]
[328392678,1717329040998,-151.0,0.00019726,2]
[328392679,1717329041007,-500.0,0.00019726,2]
[328392680,1717329041016,-500.0,0.00019726,2]
[328392681,1717329041025,-500.0,0.00019726,2]
[328392682,1717329041034,-500.0,0.00019726,2]
[328392683,1717329041043,-2599.47605176,0.00019726,2]
[328392690,1717329042019,-1260.01394824,0.00019726,2]
[328392691,1717329042028,-151.0,0.00019726,2]
[328392692,1717329042038,-151.0,0.00019726,2]
[328392693,1717329042048,-500.0,0.00019726,2]
[328392694,1717329042060,-549.74,0.00019726,2]
[328392695,1717329042069,-965.89612248,0.00019726,2]
[328392696,1717329042082,-538.76387752,0.00019726,2]
[328392697,1717329042092,-500.0,0.00019726,2]
[328392698,1717329042103,-15703.49,0.00019726,2]
[328392699,1717329042113,-7773.55766691,0.00019726,2]
[328392700,1717329042185,-7801.76233309,0.00019726,2]
[328392701,1717329042195,-676.56,0.00019726,2]
[328392702,1717329042205,-1693.39,0.00019726,2]
[328392703,1717329042215,-2166.86,0.00019726,2]
[328392704,1717329042225,-4291.74,0.00019726,2]
[328392705,1717329042234,-500.0,0.00019726,2]
[328392706,1717329042243,-151.0,0.00019726,2]
[328392707,1717329042253,-151.0,0.00019726,2]
[328392708,1717329042262,-151.0,0.00019726,2]
[328392709,1717329042271,-847.99,0.00019726,2]
[328392710,1717329042281,-723.94,0.00019726,2]
[328392711,1717329042290,-500.0,0.00019726,2]
[328392712,1717329042300,-500.0,0.00019726,2]
[328392713,1717329042313,-500.0,0.00019726,2]
[328392714,1717329042322,-500.0,0.00019726,2]
[328392715,1717329042332,-2251.0012861,0.00019772,7]
[328392716,1717329042341,-13223.97446644,0.00019772,2]
[328392742,1717329044114,-272.98733404,0.00019177,2]
[328392743,1717329044124,-16972.13177851,0.00019772,2]
[328392766,1717329047238,-1082.3,0.00019178,2]
[328392767,1717329047248,-1182.68024326,0.00019772,2]
[328392768,1717329047258,-589.87,0.00019772,2]
[328392769,1717329047268,-560.64,0.00019772,2]
[328392770,1717329047277,-500.0,0.00019772,2]
[328392771,1717329047287,-500.0,0.00019772,2]
[328392772,1717329047296,-966.43,0.00019772,2]
[328392773,1717329047305,-500.0,0.00019772,2]
[328392774,1717329047317,-500.0,0.00019772,2]
[328392775,1717329047326,-500.0,0.00019772,2]
[328392776,1717329047335,-500.0,0.00019772,2]
[328392777,1717329047345,-500.0,0.00019772,2]
[328392778,1717329047354,-500.0,0.00019772,2]
[328392779,1717329047366,-691.0,0.00019772,2]
[328392780,1717329047375,-500.0,0.00019772,2]
[328392781,1717329047384,-500.0,0.00019772,2]
[328392782,1717329047394,-500.0,0.00019772,2]
[328392783,1717329047403,-500.0,0.00019772,2]
[328392784,1717329047415,-500.0,0.00019772,2]
[328392785,1717329047424,-931.27,0.00019772,2]
[328392786,1717329047434,-1402.75,0.00019772,2]
[328392787,1717329047444,-500.0,0.00019772,2]
[328392788,1717329047453,-500.0,0.00019772,2]
[328392789,1717329047462,-500.0,0.00019772,2]
[328392790,1717329047472,-1092.16,0.00019772,2]
[328392791,1717329047481,-500.0,0.00019772,2]
[328392792,1717329047491,-500.0,0.00019772,2]
[328392793,1717329047501,-500.0,0.00019772,2]
[328392794,1717329047510,-500.0,0.00019772,2]
[328392795,1717329047519,-500.0,0.00019772,2]
[328392796,1717329047528,-548.82,0.00019772,2]
[328392797,1717329047538,-500.0,0.00019772,2]
[328392798,1717329047547,-151.0,0.00019772,2]
[328392799,1717329047556,-151.0,0.00019772,2]
[328392800,1717329047569,-151.0,0.00019772,2]
[328392801,1717329047578,-611.15,0.00019772,2]
[328392802,1717329047587,-649.44,0.00019772,2]
[328392803,1717329047596,-742.09,0.00019772,2]
[328392804,1717329047605,-2245.26,0.00019772,2]
[328392805,1717329047614,-500.0,0.00019772,2]
[328392806,1717329047623,-500.0,0.00019772,2]
[328392807,1717329047632,-524.85,0.00019772,2]
[328392808,1717329047642,-151.0,0.00019772,2]
[328392809,1717329047651,-151.0,0.00019772,2]
[328392810,1717329047660,-151.0,0.00019772,2]
[328392811,1717329047670,-151.0,0.00019772,2]
[328392812,1717329047679,-151.0,0.00019772,2]
[328392813,1717329047690,-151.0,0.00019772,2]
[328392814,1717329047700,-182.105376,0.00019772,2]
[328392815,1717329047709,-500.0,0.00019772,2]
[328392816,1717329047720,-500.0,0.00019772,2]
[328392817,1717329047731,-2112.15,0.00019772,2]
[328392818,1717329047743,-847.73,0.00019772,2]
[328392819,1717329047754,-500.0,0.00019772,2]
[328392820,1717329047765,-527.6781985,0.00019772,2]
[328392821,1717329047777,-151.0,0.00019772,2]
[328392822,1717329047788,-243.129516,0.00019772,2]
[328392823,1717329047798,-564.77,0.00019772,2]
[328392824,1717329047809,-271.17690465,0.00019772,2]
[328392827,1717329055770,551704.0,0.00030077,30]
[328392828,1717329068953,759.04335812,9.999e-05,2]
[328392829,1717329083449,400000.0,0.00030077,30]
[328392830,1717329123181,200000.0,0.00030077,30]
[328392831,1717329138528,302.91535958,9.999e-05,2]
[328392838,1717329505307,200.0,0.00030056,30]
[328392841,1717329985502,642.15896313,9.999e-05,2]
[328392881,1717330232368,-2111.14525052,0.00018115,2]
[328392882,1717330232377,-10316.4154195,0.00018116,2]
[328392883,1717330232386,-19514.85999372,0.00018382,2]
[328392884,1717330232396,-156.53620247,0.00018977,2]
[328392885,1717330232405,-3361.1267752,0.00019077,2]
[328392886,1717330232414,-892.54,0.00019168,3]
[328392887,1717330232423,-328.05227557,0.00019175,2]
[328392888,1717330232433,-1398.88487617,0.00019176,2]
[328392889,1717330232449,-3000.563174,0.00019176,2]
[328392890,1717330232461,-650.26151516,0.00019176,2]
[328392891,1717330232473,-4205.54176269,0.00019176,2]
[328392892,1717330232482,-2264.58131019,0.00019177,2]
[328392908,1717330238065,-1298.19586907,0.00019177,2]
[328392910,1717330238076,-2172.9195391,0.00019177,2]
[328392911,1717330238087,-1989.08275627,0.00019177,2]
[328392912,1717330238100,-999.76791309,0.00019177,2]
[328392913,1717330238119,-3771.56529281,0.00019177,2]
[328392919,1717330240848,-357.19216087,0.00019177,2]
[328392920,1717330240863,-1955.31525145,0.00019177,2]
[328392921,1717330240875,-27230.035418,0.00019177,2]
[328392922,1717330240884,-1125.50064305,0.00019178,7]
[328392923,1717330240893,-500.0,0.00019178,2]
[328392924,1717330240903,-500.0,0.00019178,2]
[328392925,1717330240912,-500.0,0.00019178,2]
[328392926,1717330240921,-579.8720736,0.00019178,2]
[328392927,1717330240930,-500.0,0.00019178,2]
[328392928,1717330240940,-567.96,0.00019178,2]
[328392929,1717330240949,-205.97179749,0.00019178,2]
[328392930,1717330240970,-294.02820251,0.00019178,2]
[328392931,1717330240980,-695.49,0.00019178,2]
[328392932,1717330240989,-163.641531,0.00019178,2]
[328392933,1717330240998,-500.0,0.00019178,2]
[328392934,1717330241007,-500.0,0.00019178,2]
[328392935,1717330241016,-500.0,0.00019178,2]
[328392936,1717330241025,-500.0,0.00019178,2]
[328392937,1717330241034,-214.71863226,0.00019178,2]
[328392938,1717330241043,-500.0,0.00019178,2]
[328392939,1717330241052,-500.0,0.00019178,2]
[328392940,1717330241062,-500.0,0.00019178,2]
[328392941,1717330241071,-500.0,0.00019178,2]
[328392942,1717330241080,-500.0,0.00019178,2]
[328392943,1717330241090,-500.0,0.00019178,2]
[328392944,1717330241101,-1355.03,0.00019178,2]
[328392945,1717330241111,-371.82444221,0.00019178,2]
[328392946,1717330241120,-500.0,0.00019178,2]
[328392947,1717330241130,-500.0,0.00019178,2]
[328392948,1717330241143,-500.0,0.00019178,2]
[328392949,1717330241152,-500.0,0.00019178,2]
[328392950,1717330241162,-574.9,0.00019178,2]
[328392951,1717330241172,-500.0,0.00019178,2]
[328392952,1717330241184,-470.57739277,0.00019178,2]
[328392975,1717330243112,-220.92260723,0.00019178,2]
[328392976,1717330243122,-500.0,0.00019178,2]
[328392977,1717330243133,-526.51,0.00019178,2]
[328392979,1717330243147,-500.0,0.00019178,2]
[328392980,1717330243156,-500.0,0.00019178,2]
[328392981,1717330243165,-565.29,0.00019178,2]
[328392982,1717330243174,-500.94,0.00019178,2]
[328392983,1717330243186,-537.28,0.00019178,2]
[328392984,1717330243195,-500.0,0.00019178,2]
[328392985,1717330243204,-1537.35,0.00019178,2]
[328392986,1717330243216,-500.0,0.00019178,2]
[328392987,1717330243226,-500.0,0.00019178,2]
[328392989,1717330243235,-500.0,0.00019178,2]
[328392990,1717330243244,-500.0,0.00019178,2]
[328392991,1717330243253,-730.06,0.00019178,2]
[328392992,1717330243262,-500.0,0.00019178,2]
[328392993,1717330243272,-378.89168167,0.00019178,2]
[328392994,1717330243282,-500.0,0.00019178,2]
[328392995,1717330243290,-995.89,0.00019178,2]
[328392996,1717330243300,-500.0,0.00019178,2]
[328392997,1717330243309,-926.16,0.00019178,2]
[328392998,1717330243318,-500.0,0.00019178,2]
[328392999,1717330243327,-500.0,0.00019178,2]
[328393000,1717330243336,-500.0,0.00019178,2]
[328393001,1717330243346,-500.0,0.00019178,2]
[328393002,1717330243355,-1388.41,0.00019178,2]
[328393003,1717330243364,-560.12,0.00019178,2]
[328393004,1717330243374,-630.05,0.00019178,2]
[328393005,1717330243383,-500.0,0.00019178,2]
[328393006,1717330243392,-500.0,0.00019178,2]
[328393007,1717330243402,-500.0,0.00019178,2]
[328393008,1717330243411,-500.0,0.00019178,2]
[328393009,1717330243420,-500.0,0.00019178,2]
[328393010,1717330243429,-500.0,0.00019178,2]
[328393011,1717330243438,-500.0,0.00019178,2]
[328393012,1717330243448,-159.42769262,0.00019178,2]
[328393013,1717330243457,-500.0,0.00019178,2]
[328393014,1717330243467,-151.0,0.00019178,2]
[328393015,1717330243476,-1409.2,0.00019178,2]
[328393016,1717330243485,-805.68,0.00019178,2]
[328393017,1717330243495,-500.0,0.00019178,2]
[328393018,1717330243504,-2190.27,0.00019178,2]
[328393019,1717330243514,-662.21,0.00019178,2]
[328393020,1717330243524,-500.0,0.00019178,2]
[328393021,1717330243534,-835.38,0.00019178,2]
[328393022,1717330243543,-500.0,0.00019178,2]
[328393023,1717330243552,-500.0,0.00019178,2]
[328393024,1717330243561,-500.0,0.00019178,2]
[328393025,1717330243570,-500.0,0.00019178,2]
[328393026,1717330243579,-500.0,0.00019178,2]
[328393027,1717330243589,-500.0,0.00019178,2]
[328393028,1717330243599,-500.0,0.00019178,2]
[328393029,1717330243608,-500.0,0.00019178,2]
[328393030,1717330243617,-708.64,0.00019178,2]
[328393031,1717330243627,-500.0,0.00019178,2]
[328393032,1717330243635,-500.0,0.00019178,2]
[328393033,1717330243645,-500.0,0.00019178,2]
[328393034,1717330243655,-500.0,0.00019178,2]
[328393035,1717330243664,-151.0,0.00019178,2]
[328393036,1717330243673,-896.2,0.00019178,2]
[328393037,1717330243683,-500.0,0.00019178,2]
[328393038,1717330243692,-500.0,0.00019178,2]
[328393039,1717330243701,-500.0,0.00019178,2]
[328393040,1717330243710,-500.0,0.00019178,2]
[328393041,1717330243719,-500.0,0.00019178,2]
[328393042,1717330243728,-151.0,0.00019178,2]
[328393043,1717330243737,-500.1386857,0.00019178,2]
[328393044,1717330243746,-154.641907,0.00019178,2]
[328393045,1717330243755,-1046.66,0.00019178,2]
[328393046,1717330243764,-500.0,0.00019178,2]
[328393047,1717330243774,-500.0,0.00019178,2]
[328393048,1717330243783,-500.0,0.00019178,2]
[328393049,1717330243792,-155.982184,0.00019178,2]
[328393050,1717330243802,-155.982184,0.00019178,2]
[328393051,1717330243811,-155.982184,0.00019178,2]
[328393052,1717330243820,-500.0,0.00019178,2]
[328393053,1717330243829,-155.982184,0.00019178,2]
[328393054,1717330243839,-155.982184,0.00019178,2]
[328393055,1717330243848,-500.0,0.00019178,2]
[328393056,1717330243857,-155.982184,0.00019178,2]
[328393057,1717330243866,-500.0,0.00019178,2]
[328393058,1717330243875,-155.982184,0.00019178,2]
[328393059,1717330243884,-155.982184,0.00019178,2]
[328393060,1717330243893,-155.982184,0.00019178,2]
[328393061,1717330243902,-155.982184,0.00019178,2]
[328393062,1717330243911,-155.982184,0.00019178,2]
[328393063,1717330243920,-155.982184,0.00019178,2]
[328393064,1717330243930,-155.982184,0.00019178,2]
[328393065,1717330243939,-155.982184,0.00019178,2]
[328393066,1717330243949,-500.0,0.00019178,2]
[328393067,1717330243958,-500.0,0.00019178,2]
[328393068,1717330243968,-500.0,0.00019178,2]
[328393069,1717330243978,-264.71503,0.00019178,2]
[328393070,1717330243987,-264.71503,0.00019178,2]
[328393071,1717330243997,-264.71503,0.00019178,2]
[328393072,1717330244006,-500.0,0.00019178,2]
[328393073,1717330244015,-264.71503,0.00019178,2]
[328393074,1717330244025,-264.71503,0.00019178,2]
[328393075,1717330244034,-264.71503,0.00019178,2]
[328393076,1717330244043,-264.71503,0.00019178,2]
[328393077,1717330244053,-525.95,0.00019178,2]
[328393078,1717330244062,-500.0,0.00019178,2]
[328393079,1717330244071,-500.0,0.00019178,2]
[328393080,1717330244081,-264.71503,0.00019178,2]
[328393081,1717330244091,-264.71503,0.00019178,2]
[328393082,1717330244101,-264.71503,0.00019178,2]
[328393083,1717330244110,-500.0,0.00019178,2]
[328393084,1717330244119,-500.0,0.00019178,2]
[328393085,1717330244128,-264.71503,0.00019178,2]
[328393086,1717330244143,-264.71503,0.00019178,2]
[328393087,1717330244152,-264.71503,0.00019178,2]
[328393088,1717330244161,-264.71503,0.00019178,2]
[328393089,1717330244172,-500.0,0.00019178,2]
[328393090,1717330244184,-622.38,0.00019178,2]
[328393091,1717330244193,-500.0,0.00019178,2]
[328393092,1717330244203,-500.0,0.00019178,2]
[328393093,1717330244212,-500.0,0.00019178,2]
[328393094,1717330244222,-538.54,0.00019178,2]
[328393095,1717330244233,-2151.71,0.00019178,2]
[328393096,1717330244242,-500.0,0.00019178,2]
[328393097,1717330244251,-151.0,0.00019178,2]
[328393098,1717330244261,-151.0,0.00019178,2]
[328393099,1717330244270,-500.0,0.00019178,2]
[328393100,1717330244280,-151.0,0.00019178,2]
[328393101,1717330244289,-882.69,0.00019178,2]
[328393102,1717330244298,-611.61,0.00019178,2]
[328393103,1717330244307,-483.0050612,0.00019178,2]
[328393104,1717330244316,-914.43,0.00019178,2]
[328393105,1717330244326,-711.17,0.00019178,2]
[328393106,1717330244335,-960.41,0.00019178,2]
[328393107,1717330244345,-500.0,0.00019178,2]
[328393108,1717330244355,-500.0,0.00019178,2]
[328393109,1717330244364,-502.98,0.00019178,2]
[328393110,1717330244373,-500.0,0.00019178,2]
[328393111,1717330244382,-500.0,0.00019178,2]
[328393112,1717330244392,-404.16,0.00019178,2]
[328393113,1717330244401,-500.0,0.00019178,2]
[328393114,1717330244410,-2789.58,0.00019178,2]
[328393115,1717330244419,-398.78615454,0.00019178,2]
[328393116,1717330244428,-500.0,0.00019178,2]
[328393117,1717330244438,-151.0,0.00019178,2]
[328393118,1717330244447,-151.0,0.00019178,2]
[328393119,1717330244456,-151.0,0.00019178,2]
[328393120,1717330244466,-151.0,0.00019178,2]
[328393121,1717330244475,-151.0,0.00019178,2]
[328393122,1717330244484,-500.0,0.00019178,2]
[328393123,1717330244493,-151.0,0.00019178,2]
[328393124,1717330244503,-269.275456,0.00019178,2]
[328393125,1717330244512,-2661.41,0.00019178,2]
[328393126,1717330244521,-4112.3,0.00019178,2]
[328393127,1717330244531,-500.0,0.00019178,2]
[328393128,1717330244540,-4880.65,0.00019178,2]
[328393129,1717330244550,-500.0,0.00019178,2]
[328393130,1717330244559,-1103.67,0.00019178,2]
[328393131,1717330244568,-488.8289708,0.00019178,2]
[328393132,1717330244578,-500.0,0.00019178,2]
[328393133,1717330244587,-749.28,0.00019178,2]
[328393134,1717330244597,-500.0,0.00019178,2]
[328393135,1717330244608,-508.92,0.00019178,2]
[328393136,1717330244617,-500.0,0.00019178,2]
[328393137,1717330244626,-500.0,0.00019178,2]
[328393138,1717330244635,-941.55,0.00019178,2]
[328393139,1717330244644,-500.0,0.00019178,2]
[328393140,1717330244653,-500.0,0.00019178,2]
[328393141,1717330244663,-165.36070291,0.00019178,2]
[328393142,1717330244672,-2024.15,0.00019178,2]
[328393143,1717330244681,-500.0,0.00019178,2]
[328393144,1717330244691,-966.58,0.00019178,2]
[328393145,1717330244871,-500.0,0.00019178,2]
[328393146,1717330244881,-500.0,0.00019178,2]
[328393147,1717330244891,-500.0,0.00019178,2]
[328393148,1717330244900,-3377.05,0.00019178,2]
[328393149,1717330244909,-500.0,0.00019178,2]
[328393150,1717330244918,-9926.41,0.00019178,2]
[328393151,1717330244928,-500.0,0.00019178,2]
[328393152,1717330244937,-500.0,0.00019178,2]
[328393153,1717330244947,-631.29,0.00019178,2]
[328393154,1717330244956,-812.41,0.00019178,2]
[328393155,1717330244965,-1316.58,0.00019178,2]
[328393156,1717330244975,-509.96336863,0.00019178,2]
[328393157,1717330244984,-757.67,0.00019178,2]
[328393158,1717330244993,-952.84,0.00019178,2]
[328393159,1717330245003,-13740.55,0.00019178,2]
[328393160,1717330245012,-500.0,0.00019178,2]
[328393161,1717330245021,-13628.41,0.00019178,2]
[328393162,1717330245031,-748.61,0.00019178,2]
[328393163,1717330245040,-500.0,0.00019178,2]
[328393164,1717330245050,-500.0,0.00019178,2]
[328393165,1717330245059,-541.24,0.00019178,2]
[328393166,1717330245069,-1016.56,0.00019178,2]
[328393167,1717330245078,-1481.72,0.00019178,2]
[328393168,1717330245087,-500.0,0.00019178,2]
[328393169,1717330245096,-3755.27,0.00019178,2]
[328393170,1717330245106,-500.0,0.00019178,2]
[328393171,1717330245115,-500.0,0.00019178,2]
[328393172,1717330245124,-500.0,0.00019178,2]
[328393173,1717330245135,-591.99,0.00019178,2]
[328393174,1717330245147,-652.23,0.00019178,2]
[328393175,1717330245156,-741.99,0.00019178,2]
[328393176,1717330245165,-507.36,0.00019178,2]
[328393177,1717330245175,-1896.0,0.00019178,2]
[328393178,1717330245185,-500.0,0.00019178,2]
[328393179,1717330245194,-500.0,0.00019178,2]
[328393180,1717330245203,-500.0,0.00019178,2]
[328393181,1717330245212,-500.0,0.00019178,2]
[328393182,1717330245224,-778.24,0.00019178,2]
[328393183,1717330245233,-500.0,0.00019178,2]
[328393184,1717330245242,-165.36427094,0.00019178,2]
[328393185,1717330245251,-500.0,0.00019178,2]
[328393186,1717330245260,-500.0,0.00019178,2]
[328393187,1717330245269,-500.0,0.00019178,2]
[328393188,1717330245278,-887.42,0.00019178,2]
[328393189,1717330245287,-1037.21,0.00019178,2]
[328393190,1717330245296,-595.9795024,0.00019178,2]
[328393191,1717330245305,-513.78,0.00019178,2]
[328393193,1717330245315,-500.0,0.00019178,2]
[328393194,1717330245323,-795.47963258,0.00019178,7]
[328393195,1717330245332,-173.395065,0.00019178,2]
[328393196,1717330245341,-153.0,0.000192,2]
[328393197,1717330245351,-153.0,0.000192,2]
[328393198,1717330245360,-414.6857925,0.000192,2]
[328393199,1717330245369,-153.0,0.000192,2]
[328393201,1717330245378,-153.0,0.00019282,2]
[328393203,1717330245387,-306.0,0.00019356,2]
[328393204,1717330245396,-306.0,0.00019356,2]
[328393205,1717330245405,-292.065583,0.00019356,2]
[328393206,1717330245414,-292.065583,0.00019356,2]
[328393207,1717330245423,-500.0,0.00019452,2]
[328393209,1717330245432,-500.0,0.00019452,2]
[328393211,1717330245442,-500.0,0.00019452,2]
[328393213,1717330245451,-500.0,0.00019452,2]
[328393215,1717330245459,-567.96,0.00019452,2]
[328393217,1717330245469,-500.0,0.00019452,2]
[328393219,1717330245478,-695.49,0.00019452,2]
[328393221,1717330245487,-500.0,0.00019452,2]
[328393223,1717330245496,-500.0,0.00019452,2]
[328393225,1717330245505,-500.0,0.00019452,2]
[328393227,1717330245514,-500.0,0.00019452,2]
[328393229,1717330245523,-500.0,0.00019452,2]
[328393230,1717330245532,-500.0,0.00019452,2]
[328393231,1717330245541,-500.0,0.00019452,2]
[328393233,1717330245550,-500.0,0.00019452,2]
[328393235,1717330245559,-500.0,0.00019452,2]
[328393237,1717330245568,-500.0,0.00019452,2]
[328393239,1717330245577,-1355.03,0.00019452,2]
[328393241,1717330245587,-500.0,0.00019452,2]
[328393243,1717330245596,-500.0,0.00019452,2]
[328393245,1717330245606,-500.0,0.00019452,2]
[328393246,1717330245615,-618.55284411,0.00019452,2]
[328393247,1717330245624,-574.9,0.00019452,2]
[328393248,1717330245634,-691.5,0.00019452,2]
[328393249,1717330245643,-500.0,0.00019452,2]
[328393251,1717330245652,-526.51,0.00019452,2]
[328393254,1717330245660,-500.0,0.00019452,2]
[328393256,1717330245670,-500.0,0.00019452,2]
[328393258,1717330245679,-565.29,0.00019452,2]
[328393260,1717330245688,-500.94,0.00019452,2]
[328393262,1717330245696,-537.28,0.00019452,2]
[328393264,1717330245705,-500.0,0.00019452,2]
[328393266,1717330245714,-1537.35,0.00019452,2]
[328393268,1717330245723,-500.0,0.00019452,2]
[328393270,1717330245732,-500.0,0.00019452,2]
[328393272,1717330245740,-500.0,0.00019452,2]
[328393274,1717330245749,-500.0,0.00019452,2]
[328393276,1717330245759,-730.06,0.00019452,2]
[328393278,1717330245768,-500.0,0.00019452,2]
[328393280,1717330245777,-500.0,0.00019452,2]
[328393281,1717330245786,-995.89,0.00019452,2]
[328393282,1717330245795,-500.0,0.00019452,2]
[328393283,1717330245804,-926.16,0.00019452,2]
[328393284,1717330245813,-500.0,0.00019452,2]
[328393285,1717330245822,-500.0,0.00019452,2]
[328393286,1717330245830,-500.0,0.00019452,2]
[328393287,1717330245839,-500.0,0.00019452,2]
[328393288,1717330245848,-1388.41,0.00019452,2]
[328393289,1717330245857,-560.12,0.00019452,2]
[328393290,1717330245866,-630.05,0.00019452,2]
[328393291,1717330245875,-500.0,0.00019452,2]
[328393292,1717330245884,-500.0,0.00019452,2]
[328393293,1717330245893,-500.0,0.00019452,2]
[328393294,1717330245902,-500.0,0.00019452,2]
[328393295,1717330245912,-500.0,0.00019452,2]
[328393296,1717330245922,-500.0,0.00019452,2]
[328393297,1717330245931,-500.0,0.00019452,2]
[328393298,1717330245940,-500.0,0.00019452,2]
[328393299,1717330245949,-805.68,0.00019452,2]
[328393300,1717330245958,-1409.2,0.00019452,2]
[328393301,1717330245967,-500.0,0.00019452,2]
[328393302,1717330245976,-2190.27,0.00019452,2]
[328393303,1717330245986,-662.21,0.00019452,2]
[328393304,1717330245995,-500.0,0.00019452,2]
[328393305,1717330246005,-835.38,0.00019452,2]
[328393306,1717330246014,-169.11403742,0.00019452,2]
[328393307,1717330246023,-500.0,0.00019452,2]
[328393308,1717330246033,-500.0,0.00019452,2]
[328393309,1717330246042,-500.0,0.00019452,2]
[328393310,1717330246051,-500.0,0.00019452,2]
[328393311,1717330246060,-500.0,0.00019452,2]
[328393312,1717330246069,-500.0,0.00019452,2]
[328393313,1717330246078,-500.0,0.00019452,2]
[328393314,1717330246087,-708.64,0.00019452,2]
[328393315,1717330246096,-500.0,0.00019452,2]
[328393316,1717330246105,-500.0,0.00019452,2]
[328393317,1717330246114,-500.0,0.00019452,2]
[328393318,1717330246123,-500.0,0.00019452,2]
[328393319,1717330246133,-896.2,0.00019452,2]
[328393320,1717330246147,-500.0,0.00019452,2]
[328393321,1717330246156,-500.0,0.00019452,2]
[328393322,1717330246166,-500.0,0.00019452,2]
[328393323,1717330246175,-500.0,0.00019452,2]
[328393324,1717330246185,-500.0,0.00019452,2]
[328393325,1717330246194,-1046.66,0.00019452,2]
[328393326,1717330246202,-500.0,0.00019452,2]
[328393327,1717330246214,-500.0,0.00019452,2]
[328393328,1717330246223,-500.0,0.00019452,2]
[328393329,1717330246231,-500.0,0.00019452,2]
[328393330,1717330246240,-500.0,0.00019452,2]
[328393331,1717330246249,-500.0,0.00019452,2]
[328393332,1717330246258,-155.982184,0.00019452,2]